bitfinex-derivatives/quotes_ETHF0:USTF0_20250123
["timestamp","ask_amount","ask_price","bid_price","bid_amount"]
[1737652801819,0.61627,3244.5,3244.3,3.82409]
[1737652802023,1.54055,3244.8,3244.3,3.2078]
[1737652802216,0.61629,3244.4,3244.3,3.2078]
[1737652802521,3.08879,3244.9,3244.3,3.2078]
[1737652803016,0.61629,3244.4,3244.3,3.2078]
[1737652803215,1.54054,3244.8,3244.3,3.2078]
[1737652803620,0.61629,3244.4,3244.3,3.2078]
[1737652803919,0.61634,3244.1,3244.0,1.6436]
[1737652804123,0.61636,3244.0,3243.9,1.5232]
[1737652804822,3.2078,3244.6,3244.2,0.61632]
[1737652805017,1.6462,3244.9,3244.5,2.40778043]
[1737652805221,0.61622,3244.8,3244.6,0.61624]
[1737652805419,0.90521088,3244.9,3244.7,0.61622]
[1737652805618,0.28900088,3244.9,3244.8,3.02399043]
[1737652805816,3.2078,3245.8,3244.8,2.40778043]
[1737652806116,3.2078,3245.8,3245.3,2.40778043]
[1737652806321,3.82383,3245.8,3245.5,0.61607]
[1737652806517,0.61606,3245.7,3245.4,3.80659]
[1737652806716,0.6161,3245.4,3245.3,3.2078]
[1737652810817,0.00462207,3245.7,3245.3,5.61558043]
[1737652811424,0.6161,3245.4,3245.3,3.2078]
[1737652812228,0.00462207,3245.7,3245.3,3.2078]
[1737652812430,0.61609,3245.5,3245.3,3.2078]
[1737652812728,0.61607,3245.6,3245.4,0.6161]
[1737652813125,0.00462207,3245.7,3245.3,5.61558043]
[1737652813330,0.00462207,3245.7,3245.6,3.02384043]
[1737652815818,3.2078,3246.6,3246.3,0.61591]
[1737652816018,1.5073,3246.9,3246.5,0.61588]
[1737652816232,0.61583,3246.9,3246.6,2.40778043]
[1737652816524,4.8405,3247.1,3246.6,2.40778043]
[1737652816726,0.61577,3247.2,3246.9,2.40778043]
[1737652816923,0.61575,3247.3,3246.9,2.40778043]
[1737652817132,0.61579,3247.1,3246.7,3.2078]
[1737652817322,1.51192,3247.4,3246.8,0.00462207]
[1737652817627,0.61577,3247.2,3246.8,0.62045207]
[1737652818719,0.61578,3247.1,3246.8,0.00462207]
[1737652819032,0.61577,3247.2,3246.8,0.62044207]
[1737652819225,1.51192,3247.4,3246.9,2.40778043]
[1737652819428,2.12765,3247.4,3246.9,3.02358043]
[1737652819640,2.12765,3247.4,3247.0,1.6178]
[1737652819830,1.51192,3247.4,3247.0,1.6178]
[1737652820224,1.51192,3247.4,3246.8,0.00462207]
[1737652820429,0.00462,3247.4,3246.9,2.40778043]
[1737652820626,0.00462,3247.4,3246.9,3.02358043]
[1737652820931,0.00462,3247.4,3247.2,2.40778043]
[1737652821130,0.62034,3247.4,3247.2,2.40778043]
[1737652821334,0.62035,3247.4,3247.2,2.40778043]
[1737652821531,0.62035,3247.4,3247.2,3.98518043]
[1737652821829,0.61574,3247.3,3247.2,1.5774]
[1737652823433,0.00462,3247.4,3247.1,3.2078]
[1737652823434,0.61576,3247.2,3247.1,3.2078]
[1737652824131,0.00462,3247.4,3246.8,0.00462207]
[1737652824339,0.61581,3247.0,3246.8,0.00462207]
[1737652824840,0.61581,3246.9,3246.8,0.00462207]
[1737652826237,0.61576,3247.2,3246.8,0.62045207]
[1737652826432,0.61576,3247.2,3246.9,2.40778043]
[1737652826626,3.1951,3247.3,3246.9,3.96218043]
[1737652826833,0.61576,3247.2,3246.9,3.96218043]
[1737652827232,0.00462,3247.4,3247.1,3.2078]
[1737652827443,3.2078,3247.9,3247.3,2.40778043]
[1737652827630,3.82343,3247.9,3247.6,2.40778043]
[1737652827825,0.61564,3247.8,3247.7,1.5544]
[1737652828137,3.82343,3247.9,3247.7,1.5544]
[1737652828336,0.61555,3248.3,3247.7,2.17006]
[1737652828639,6.3667,3248.4,3247.7,5.37786]
[1737652828831,6.3667,3248.4,3247.7,1.5544]
[1737652829141,3.2078,3248.4,3247.9,2.40778043]
[1737652829333,0.61556,3248.3,3248.0,2.1158]
[1737652829727,0.61555,3248.3,3248.0,2.1158]
[1737652829933,3.2078,3248.4,3248.0,1.5002]
[1737652830334,0.61557,3248.2,3248.0,1.5002]
[1737652830527,3.2078,3248.4,3248.0,1.5002]
[1737652830834,0.61558,3248.2,3248.0,1.5002]
[1737652831036,0.61559,3248.1,3248.0,1.5002]
[1737652831540,0.61558,3248.2,3248.0,1.5002]
[1737652831738,3.2078,3248.4,3248.0,1.5002]
[1737652831933,0.61557,3248.2,3248.0,1.5002]
[1737652832243,3.2078,3248.4,3248.0,1.5002]
[1737652832435,3.2078,3248.4,3248.3,2.40778043]
[1737652832635,3.2078,3248.4,3248.0,3.90798043]
[1737652832836,0.61559,3248.1,3248.0,3.90798043]
[1737652833139,3.2078,3248.4,3248.0,3.90798043]
[1737652833339,0.61556,3248.3,3248.0,4.52358043]
[1737652833535,0.61557,3248.2,3248.0,3.90798043]
[1737652833739,3.2078,3248.4,3248.0,3.90798043]
[1737652833940,3.2078,3248.4,3248.0,4.52358043]
[1737652834444,3.2078,3248.8,3248.3,2.40778043]
[1737652834637,0.61545,3248.9,3248.6,2.40778043]
[1737652834831,0.61545,3248.8,3248.6,2.40778043]
[1737652835146,0.6155,3248.6,3248.4,1.62372207]
[1737652835443,0.61548,3248.7,3248.4,1.62372207]
[1737652835835,0.61547,3248.8,3248.4,1.62372207]
[1737652836237,3.1728,3249.2,3248.4,1.62372207]
[1737652836439,0.61545,3248.8,3248.4,2.23924207]
[1737652836639,0.61545,3248.8,3248.4,1.62372207]
[1737652836839,0.61545,3248.8,3248.4,2.23925207]
[1737652837140,0.61548,3248.7,3248.4,1.62372207]
[1737652837542,3.1728,3249.2,3248.4,1.62372207]
[1737652837839,0.6155,3248.6,3248.4,1.62372207]
[1737652838046,3.2078,3248.9,3248.4,1.62372207]
[1737652838340,0.61551,3248.5,3248.4,1.62372207]
[1737652838638,0.6155,3248.6,3248.4,1.62372207]
[1737652839332,3.2078,3248.9,3248.4,1.62372207]
[1737652839846,0.61545,3248.8,3248.4,1.62372207]
[1737652840034,0.61549,3248.7,3248.4,1.62372207]
[1737652840241,0.61549,3248.6,3248.4,1.62372207]
[1737652840837,0.61551,3248.5,3248.4,1.62372207]
[1737652841034,0.61551,3248.5,3248.4,0.00462207]
[1737652841239,3.82331,3248.5,3248.4,0.00462207]
[1737652841736,7.90521,3248.5,3248.4,0.00462207]
[1737652845746,16.86874425,3248.5,3248.4,2.07e-06]
[1737652846836,17.157452,3248.5,3248.4,2.07e-06]
[1737652848035,16.86874425,3248.5,3248.4,2.07e-06]
[1737652848239,17.15745054,3248.5,3248.4,2.07e-06]
[1737652848449,12.15744694,3248.5,3248.4,2.07e-06]
[1737652848747,11.86874425,3248.5,3248.4,2.07e-06]
[1737652849045,17.15745002,3248.5,3248.4,2.07e-06]
[1737652850047,17.4461707,3248.5,3248.4,2.07e-06]
[1737652851548,12.4461707,3248.5,3248.4,2.07e-06]
[1737652852351,17.4461707,3248.5,3248.4,2.07e-06]
[1737652852649,12.4461707,3248.5,3248.4,2.07e-06]
[1737652853248,4.11203068,3248.5,3248.4,2.07e-06]
[1737652853447,3.82331,3248.5,3248.4,2.07e-06]
[1737652856157,8.31609525,3248.5,3248.4,2.07e-06]
[1737652861256,13.75154688,3248.5,3248.4,2.07e-06]
[1737652862162,0.6157,3247.5,3247.4,1.5737]
[1737652862356,3.8235,3247.5,3247.4,1.5737]
[1737652864960,0.61598,3246.0,3245.9,3.2078]
[1737652865167,0.61598,3246.0,3245.9,4.8472]
[1737652865466,0.616,3245.9,3245.8,1.5377]
[1737652865756,3.8238,3245.9,3245.8,1.5377]
[1737652865958,0.61602,3245.8,3245.7,3.5711127]
[1737652866153,0.61602,3245.8,3245.7,2.1380427]
[1737652866353,0.61602,3245.8,3245.7,1.37828742]
[1737652866354,4.57879778,3245.8,3245.7,1.37828742]
[1737652866554,4.86774041,3245.8,3245.7,1.37828742]
[1737652866951,4.86774041,3245.8,3245.6,7.25451405]
[1737652866952,0.61604,3245.7,3245.6,7.10602147]
[1737652867157,3.02382043,3245.7,3245.6,7.10602147]
[1737652867357,6.93989882,3245.7,3245.6,6.45647147]
[1737652867760,6.32385882,3245.7,3245.5,0.00462207]
[1737652867960,0.61606,3245.6,3245.5,0.00462207]
[1737652868264,4.55877659,3245.6,3245.5,0.00462207]
[1737652868667,9.55877659,3245.6,3245.5,2.07e-06]
[1737652868854,4.55877659,3245.6,3245.5,2.07e-06]
[1737652869164,9.55877659,3245.6,3245.5,2.07e-06]
[1737652870364,4.55877659,3245.6,3245.5,2.07e-06]
[1737652870959,9.55877659,3245.6,3245.5,2.07e-06]
[1737652871565,0.61629,3244.4,3244.3,4.7222]
[1737652871763,0.61629,3244.4,3244.3,1.5144]
[1737652875057,0.61628,3244.5,3244.3,2.1307]
[1737652875258,3.2078,3244.8,3244.3,1.5144]
[1737652875259,0.61629,3244.4,3244.3,1.5144]
[1737652875464,3.2078,3244.8,3244.3,2.13071]
[1737652875666,0.61628,3244.5,3244.3,2.13071]
[1737652875860,3.2078,3244.8,3244.3,1.5144]
[1737652876059,3.2078,3244.8,3244.4,0.61627]
[1737652876260,0.61627,3244.5,3244.4,0.61627]
[1737652876769,0.61629,3244.4,3244.3,1.5144]
[1737652877371,3.2078,3244.8,3244.4,0.61629]
[1737652877372,0.61628,3244.5,3244.4,0.61629]
[1737652877576,0.61629,3244.4,3244.3,2.1307]
[1737652877868,0.61628,3244.5,3244.4,0.61628]
[1737652878071,0.61628,3244.5,3244.3,1.5144]
[1737652878266,0.61626,3244.6,3244.3,1.5144]
[1737652878568,1.5404,3245.1,3244.5,0.61625]
[1737652878760,0.61626,3244.6,3244.4,0.61627]
[1737652878965,3.2078,3245.0,3244.4,0.61627]
[1737652879168,0.61626,3244.6,3244.4,0.61627]
[1737652879368,3.2078,3245.0,3244.4,2.40778043]
[1737652879569,0.61622,3244.8,3244.6,0.61625]
[1737652880370,0.61622,3244.8,3244.4,2.40778043]
[1737652880670,3.2078,3245.4,3244.7,2.40778043]
[1737652880969,0.61613,3245.3,3245.1,0.61615]
[1737652881170,3.8239,3245.4,3245.2,2.15762]
[1737652881369,3.8239,3245.4,3245.3,0.61612]
[1737652881568,3.8239,3245.4,3245.2,1.5415]
[1737652881569,0.61612,3245.3,3245.2,2.15763]
[1737652881772,0.61612,3245.3,3245.2,1.5415]
[1737652881966,0.61615,3245.1,3245.0,3.2078]
[1737652882473,0.61614,3245.2,3245.0,3.82396]
[1737652882674,3.2078,3245.4,3245.1,0.61615]
[1737652883169,0.61613,3245.3,3245.2,3.1236]
[1737652883468,0.61604,3245.7,3245.2,3.1236]
[1737652883679,3.20951433,3245.8,3245.3,2.40778043]
[1737652883972,0.00171433,3245.8,3245.7,0.61604]
[1737652884366,0.00171433,3245.8,3245.4,4.7513]
[1737652884566,0.61608,3245.5,3245.4,4.7513]
[1737652884759,0.61604,3245.7,3245.2,3.1236]
[1737652885073,0.61609,3245.5,3245.3,0.61612]
[1737652885269,0.61611,3245.4,3245.2,3.73972]
[1737652885569,0.00171433,3245.8,3245.2,3.1236]
[1737652885769,0.61612,3245.3,3245.2,3.1236]
[1737652887786,2.91818854,3245.7,3244.9,3.2078]
[1737652887981,0.61617,3245.0,3244.9,3.2078]
[1737652893981,0.61617,3245.0,3244.9,3.82399]
[1737652894283,0.61617,3245.0,3244.9,3.2078]
[1737652894480,3.20951433,3245.8,3244.9,3.2078]
[1737652894784,0.61616,3245.1,3245.0,0.61617]
[1737652895380,0.61615,3245.2,3245.0,0.61617]
[1737652895774,1.54011,3245.7,3245.0,0.61617]
[1737652895974,0.61615,3245.1,3245.0,0.61617]
[1737652896381,0.61615,3245.2,3245.0,0.61617]
[1737652896693,1.5402,3245.5,3244.9,3.82398]
[1737652896982,0.61617,3245.0,3244.9,3.2078]
[1737652897481,0.61623,3244.7,3244.6,3.107]
[1737652897679,0.61623,3244.7,3244.6,3.72325]
[1737652897877,0.61623,3244.7,3244.6,3.107]
[1737652899079,0.61622,3244.8,3244.7,0.61622]
[1737652899380,3.2078,3245.4,3244.6,3.107]
[1737652899582,0.61613,3245.3,3245.1,0.61614]
[1737652899794,1.5175,3246.0,3245.2,1.5519]
[1737652899987,4.74764,3246.3,3245.3,4.7904]
[1737652900191,0.61601,3245.9,3245.7,0.61604]
[1737652900391,3.2078,3246.3,3245.7,0.61604]
[1737652900588,0.62058207,3246.2,3245.7,0.61604]
[1737652900793,0.61597,3246.1,3245.7,0.61604]
[1737652901097,0.62057207,3246.2,3245.7,0.61604]
[1737652901293,0.00462207,3246.2,3245.7,0.61604]
[1737652901499,0.00462207,3246.2,3245.7,6.74202854]
[1737652902297,0.00462207,3246.2,3245.7,11.74202854]
[1737652902496,0.00462207,3246.2,3246.1,0.61596]
[1737652903192,0.62057207,3246.2,3246.0,0.61597]
[1737652903393,0.00462207,3246.2,3246.1,0.61596]
[1737652903794,0.00462207,3246.2,3245.9,1.6153]
[1737652904100,0.616,3245.9,3245.8,0.00462207]
[1737652906098,1.61622207,3246.2,3245.8,0.00462207]
[1737652906305,0.00462207,3246.2,3245.8,0.00462207]
[1737652906495,0.61599,3246.0,3245.8,3.82843207]
[1737652906695,0.00462207,3246.2,3245.8,3.21242207]
[1737652906892,0.00462207,3246.2,3246.0,0.61597]
[1737652907106,0.00462207,3246.2,3246.1,0.61596]
[1737652908706,0.61596,3246.1,3246.0,1.5888]
[1737652908899,0.00462207,3246.2,3245.8,3.21242207]
[1737652909304,0.616,3245.9,3245.8,3.21242207]
[1737652909500,0.616,3245.9,3245.8,0.00462207]
[1737652910693,0.616,3246.0,3245.8,0.00462207]
[1737652910897,0.616,3246.0,3245.8,0.62063207]
[1737652911101,0.61599,3246.0,3245.9,0.61599]
[1737652911305,0.61599,3246.0,3245.8,0.62063207]
[1737652911606,0.62057207,3246.2,3246.0,0.61597]
[1737652911805,0.00462207,3246.2,3246.1,0.61596]
[1737652913003,0.00462207,3246.2,3246.0,0.61598]
[1737652913209,0.62058207,3246.2,3246.0,0.61598]
[1737652913507,0.00462207,3246.2,3246.1,0.61596]
[1737652913909,0.00462207,3246.2,3245.8,3.21242207]
[1737652914206,0.00462207,3246.2,3246.1,0.61596]
[1737652914405,0.62057207,3246.2,3245.8,3.21242207]
[1737652914601,0.00462207,3246.2,3245.8,3.21242207]
[1737652914796,0.61596,3246.1,3245.8,3.21242207]
[1737652915005,0.61596,3246.1,3246.0,0.61597]
[1737652915006,0.61597,3246.1,3246.0,0.61597]
[1737652915509,0.62058207,3246.2,3246.0,0.61597]
[1737652915713,0.00462207,3246.2,3245.8,3.21242207]
[1737652915910,0.616,3245.9,3245.8,3.82844207]
[1737652916414,0.00462207,3246.2,3245.8,3.21242207]
[1737652916618,0.61599,3246.0,3245.9,0.616]
[1737652917113,0.61597,3246.1,3246.0,0.61598]
[1737652917313,0.00462207,3246.2,3245.8,3.21242207]
[1737652917610,0.616,3246.0,3245.9,0.61599]
[1737652917812,0.616,3245.9,3245.8,3.21242207]
[1737652918005,0.616,3245.9,3245.8,3.82844207]
[1737652918205,0.00462207,3246.2,3245.8,3.21242207]
[1737652918406,0.61598,3246.1,3246.0,0.61598]
[1737652918614,0.61599,3246.0,3245.9,0.61599]
[1737652918911,0.61599,3246.0,3245.8,3.21242207]
[1737652919113,0.61599,3246.0,3245.8,3.82843207]
[1737652919312,0.61599,3246.0,3245.9,0.616]
[1737652920313,0.616,3245.9,3245.8,3.21242207]
[1737652920816,0.616,3245.9,3245.8,0.00462207]
[1737652924410,2.1331,3245.9,3245.8,0.00462207]
[1737652925810,2.42197595,3245.9,3245.8,0.00462207]
[1737652926314,1.54006,3245.8,3244.5,3.2078]
[1737652926514,0.61627,3244.5,3244.4,3.2078]
[1737652927516,0.61626,3244.6,3244.4,3.82407]
[1737652927817,1.5755,3245.3,3244.4,3.2078]
[1737652928023,0.61619,3245.0,3244.8,0.61621]
[1737652928517,0.61617,3245.1,3244.9,0.61619]
[1737652928715,1.86444182,3245.3,3244.6,1.5425]
[1737652929015,0.61619,3245.0,3244.6,1.5425]
[1737652929219,0.61619,3245.0,3244.8,0.61621]
[1737652929816,1.86444182,3245.3,3244.6,1.5425]
[1737652930014,0.6162,3244.9,3244.7,0.61622]
[1737652930211,1.86444182,3245.3,3244.6,1.5425]
[1737652930411,0.61623,3244.7,3244.6,1.5425]
[1737652930920,1.5755,3245.3,3244.4,3.2078]
[1737652931106,0.61627,3244.5,3244.4,3.2078]
[1737652931310,0.61633,3244.2,3244.1,0.00462207]
[1737652933020,3.53266691,3244.2,3244.1,0.00462207]
[1737652933215,3.53266691,3244.2,3243.0,48.66542619]
[1737652933216,0.61652,3243.2,3243.1,1.6127]
[1737652933714,1.54103,3243.8,3243.1,1.6127]
[1737652933904,0.61644,3243.7,3243.3,0.61648]
[1737652934108,0.61649,3243.4,3243.2,3.2078]
[1737652934318,2.15721,3244.1,3243.2,3.82893207]
[1737652934519,1.54087,3244.1,3243.3,0.61649]
[1737652934720,2.91633691,3244.2,3243.2,3.21242207]
[1737652935017,0.61642,3243.7,3243.5,0.61644]
[1737652935214,0.61642,3243.7,3243.6,3.2078]
[1737652935919,1.54077,3244.3,3243.2,3.21242207]
[1737652935920,3.2078,3244.0,3243.2,3.21242207]
[1737652936124,0.61647,3243.5,3243.3,0.61649]
[1737652936422,0.6165,3243.3,3243.2,3.21242207]
[1737652940825,0.6165,3243.3,3243.2,4.74242207]
[1737652941023,3.1753,3243.7,3243.2,4.74242207]
[1737652941222,1.5676,3243.7,3243.2,4.74242207]
[1737652941523,0.61649,3243.4,3243.3,1.6622]
[1737652943321,0.6165,3243.3,3243.2,1.53462207]
[1737652943924,0.61649,3243.4,3243.2,5.35892207]
[1737652944127,1.6641,3243.9,3243.2,7.65875898]
[1737652944421,0.6164,3243.9,3243.2,9.20001898]
[1737652944625,0.6164,3243.9,3243.7,0.61641]
[1737652944923,3.2078,3244.0,3243.2,4.74242207]
[1737652945223,1.54096,3243.9,3243.3,1.5017]
[1737652945613,0.61647,3243.5,3243.3,2.1182]
[1737652945811,3.2078,3244.0,3243.3,1.5017]
[1737652946016,0.61648,3243.4,3243.3,1.5017]
[1737652946822,0.6165,3243.3,3243.2,1.53462207]
[1737652947124,0.6165,3243.3,3243.2,0.00462207]
[1737652947922,0.6165,3243.3,3243.2,1.57392207]
[1737652948122,0.61648,3243.4,3243.3,0.61649]
[1737652948318,1.54101,3243.8,3243.2,4.78172207]
[1737652948620,1.5946,3243.9,3243.4,0.61647]
[1737652948813,0.61643,3243.7,3243.5,0.61644]
[1737652949018,0.61647,3243.5,3243.4,0.61647]
[1737652949222,4.74876,3244.0,3243.3,0.61648]
[1737652949223,2.15737,3243.9,3243.3,0.61648]
[1737652949525,0.6165,3243.3,3243.2,4.78172207]
[1737652950629,0.6165,3243.3,3243.2,3.21242207]
[1737652954024,1.5541,3243.8,3243.2,3.21242207]
[1737652954219,4.74872,3244.0,3243.2,3.21242207]
[1737652954419,0.61645,3243.6,3243.5,0.61644]
[1737652954829,0.61644,3243.7,3243.6,0.61643]
[1737652955034,3.2078,3244.0,3243.7,0.61641]
[1737652955035,0.61642,3243.8,3243.7,0.61641]
[1737652955218,3.2078,3244.0,3243.2,6.12875898]
[1737652955421,0.61643,3243.7,3243.6,0.61642]
[1737652956026,3.2078,3244.0,3243.2,6.12875898]
[1737652956231,0.61646,3243.6,3243.5,0.61645]
[1737652956418,0.61643,3243.7,3243.6,0.61643]
[1737652956625,6.28147,3244.4,3243.6,3.2078]
[1737652956824,0.61632,3244.3,3244.2,0.61631]
[1737652957020,0.61634,3244.2,3243.7,4.71453]
[1737652957328,3.2078,3244.4,3243.7,3.1735]
[1737652957826,2.15708,3244.3,3243.8,0.6164]
[1737652958031,2.15708,3244.3,3243.7,3.1735]
[1737652958032,0.6164,3243.8,3243.7,3.1735]
[1737652958218,0.6164,3243.8,3243.7,1.5667]
[1737652960826,5.61713508,3244.0,3243.3,0.61649]
[1737652961027,0.61648,3243.4,3243.3,0.61649]
[1737652961636,1.54102,3243.8,3243.2,1.63692207]
[1737652961933,0.6165,3243.3,3243.2,1.63692207]
[1737652962232,0.6165,3243.3,3243.2,0.00462207]
[1737652962720,0.90564251,3243.3,3243.2,0.00462207]
[1737652962921,1.34269841,3243.3,3243.2,0.00462207]
[1737652963127,1.63184844,3243.3,3243.2,0.00462207]
[1737652963730,5.69828408,3243.3,3243.2,2.07e-06]
[1737652963928,15.81328408,3243.3,3243.2,2.07e-06]
[1737652964129,10.81328408,3243.3,3243.2,2.07e-06]
[1737652964336,5.69828408,3243.3,3243.2,2.07e-06]
[1737652965628,13.62089595,3243.3,3243.2,2.07e-06]
[1737652968537,13.62089595,3243.3,3236.5,65.30720546]
[1737652968538,2.92261187,3242.5,3241.3,3.2078]
[1737652968836,1.54191,3242.0,3241.3,3.2078]
[1737652969132,0.61686,3241.4,3241.3,3.82468]
[1737652969532,0.61686,3241.4,3241.3,3.2078]
[1737652971642,0.61685,3241.5,3241.3,3.2078]
[1737652971939,0.61686,3241.4,3241.3,3.2078]
[1737652972743,0.00462207,3241.7,3241.3,3.2078]
[1737652973039,0.61683,3241.6,3241.3,3.82467]
[1737652973236,0.00462207,3241.7,3241.3,3.82467]
[1737652973440,0.61686,3241.4,3241.3,3.2078]
[1737652973636,0.61685,3241.5,3241.3,3.82467]
[1737652973831,0.00462207,3241.7,3241.3,3.82467]
[1737652973832,0.61686,3241.4,3241.3,3.2078]
[1737652974235,0.61684,3241.5,3241.3,3.82467]
[1737652974433,0.61686,3241.4,3241.3,3.2078]
[1737652974833,0.61686,3241.4,3241.3,4.8518]
[1737652976241,0.61684,3241.5,3241.4,0.61684]
[1737652976538,0.61684,3241.5,3241.4,0.61685]
[1737652976732,0.61684,3241.5,3241.3,4.8518]
[1737652976733,5.0,3241.5,3241.0,0.00308138]
[1737652976933,1.5425,3240.7,3239.4,9.59563649]
[1737652977237,0.61718,3239.7,3239.4,9.59563649]
[1737652978443,4.66397134,3239.7,3239.4,9.59563649]
[1737652978832,4.66397134,3239.7,3239.6,6.37458619]
[1737652979030,9.66397134,3239.7,3239.6,5.46170619]
[1737652979236,9.66397134,3239.7,3239.6,4.71038619]
[1737652979440,11.17177134,3239.7,3239.6,4.71038619]
[1737652980144,11.17177134,3239.7,3239.6,3.81162619]
[1737652980337,11.17177134,3239.7,3239.6,3.15908619]
[1737652980641,11.17177134,3239.7,3239.6,1.66606619]
[1737652980836,11.17177134,3239.7,3239.6,0.99956619]
[1737652981039,6.17177134,3239.7,3239.6,0.99956619]
[1737652981237,6.17177134,3239.7,3239.6,0.35144619]
[1737652981543,11.17177134,3239.7,3239.6,0.35144619]
[1737652981745,0.61718,3239.7,3239.6,0.35144619]
[1737652983439,0.61718,3239.7,3239.4,0.61723]
[1737652983841,0.61718,3239.7,3239.3,1.5793]
[1737652984144,0.61718,3239.7,3239.5,0.61721]
[1737652984344,0.61716,3239.9,3239.7,0.61718]
[1737652984740,0.61714,3239.9,3239.6,0.61719]
[1737652984939,0.00462942,3240.0,3239.5,3.2078]
[1737652985442,0.6172,3239.6,3239.5,3.2078]
[1737652988345,3.2078,3239.9,3239.5,3.2078]
[1737652988750,0.00462942,3240.0,3239.5,3.2078]
[1737652989052,0.00462942,3240.0,3239.6,0.6172]
[1737652989247,0.00462942,3240.0,3239.8,0.61716]
[1737652989645,0.6171,3240.2,3239.9,1.5851]
[1737652989845,3.2078,3240.3,3239.9,1.5851]
[1737652990150,0.61709,3240.2,3239.9,2.20224]
[1737652991050,0.61712,3240.0,3239.9,1.5851]
[1737652991552,0.61716,3239.8,3239.7,0.00462942]
[1737652996153,0.00462942,3240.4,3240.3,0.61707]
[1737652996346,3.2078,3241.1,3240.3,3.2078]
[1737652996546,0.61695,3241.0,3240.7,3.2078]
[1737652996749,3.2078,3241.5,3240.9,0.61695]
[1737652997051,0.61693,3241.1,3240.7,3.2078]
[1737652997251,3.2078,3241.5,3240.7,3.2078]
[1737652997445,0.61697,3240.8,3240.7,3.2078]
[1737652997748,3.2078,3241.0,3240.4,1.4421]
[1737652997941,0.61703,3240.6,3240.4,1.4421]
[1737652998141,0.61703,3240.5,3240.4,1.4421]
[1737652998350,3.2078,3240.6,3239.9,3.2078]
[1737652998552,3.2078,3240.6,3239.7,0.00462942]
[1737652998553,0.61714,3239.9,3239.8,1.4421]
[1737652998961,6.13041187,3240.1,3239.7,0.00462942]
[1737652999260,0.61716,3239.8,3239.7,0.00462942]
[1737652999858,6.13041187,3240.1,3239.7,0.00462942]
[1737653000154,4.33961187,3240.5,3239.7,0.00462942]
[1737653000345,2.92261187,3240.5,3239.9,3.2078]
[1737653000550,0.6171,3240.2,3240.0,2.8414]
[1737653000755,0.61705,3240.4,3240.0,2.8414]
[1737653000966,0.61708,3240.3,3240.0,2.8414]
[1737653001155,0.61711,3240.1,3240.0,2.8414]
[1737653001349,3.2078,3240.6,3240.0,2.8414]
[1737653001550,0.61708,3240.3,3240.1,0.6171]
[1737653001955,0.61709,3240.2,3240.0,3.45851]
[1737653002155,3.2078,3240.6,3240.0,2.8414]
[1737653002354,0.61708,3240.3,3240.1,0.61711]
[1737653002558,0.61711,3240.1,3240.0,2.8414]
[1737653003058,3.2078,3240.6,3240.0,2.8414]
[1737653003259,0.6171,3240.2,3240.0,6.0492]
[1737653003559,0.61705,3240.5,3240.2,0.61708]
[1737653003955,0.61703,3240.5,3240.3,0.61706]
[1737653004146,2.92261187,3240.9,3240.0,6.0492]
[1737653004353,3.2078,3240.6,3240.1,0.6171]
[1737653004649,3.2078,3240.6,3240.0,6.0492]
[1737653004849,0.6171,3240.2,3240.0,6.0492]
[1737653005762,0.61708,3240.3,3240.0,6.66631]
[1737653006657,0.28936096,3240.5,3240.0,6.0492]
[1737653006859,0.61705,3240.4,3240.0,6.0492]
[1737653007049,0.61708,3240.3,3240.0,6.66631]
[1737653007357,3.2078,3240.3,3239.8,0.05]
[1737653007559,6.74755187,3239.9,3239.8,0.05]
[1737653008564,7.03691283,3239.9,3239.8,0.0139572]
[1737653008757,11.09716056,3239.9,3239.8,0.0139572]
[1737653008968,11.82285256,3239.9,3239.8,7.2e-06]
[1737653009150,16.82285256,3239.9,3239.8,7.2e-06]
[1737653009356,16.82285256,3239.9,3238.9,3.2078]
[1737653009357,0.61732,3239.0,3238.9,3.2078]
[1737653009560,0.61736,3238.8,3238.6,0.61739]
[1737653009757,0.61732,3239.0,3238.8,0.61734]
[1737653010058,0.61733,3238.9,3238.7,0.61737]
[1737653010258,0.61732,3239.0,3238.8,0.61735]
[1737653010961,0.61734,3238.9,3238.7,0.61737]
[1737653011155,0.61732,3239.0,3238.6,0.61738]
[1737653011352,0.61735,3238.9,3238.6,0.61738]
[1737653011556,0.61735,3238.9,3238.7,0.61737]
[1737653011754,0.61735,3238.9,3238.5,3.21242942]
[1737653012064,0.00462942,3239.1,3238.5,3.21242942]
[1737653012259,0.00462942,3239.1,3239.0,0.61732]
[1737653012565,0.00462942,3239.1,3238.5,3.21242942]
[1737653012758,0.00462942,3239.1,3239.0,0.61732]
[1737653013461,0.00462942,3239.1,3238.9,0.61732]
[1737653013662,0.00462942,3239.1,3239.0,1.98452]
[1737653014260,0.00462942,3239.1,3238.5,0.00462942]
[1737653014458,0.00462942,3239.1,3238.6,0.61739]
[1737653014663,0.61734,3238.9,3238.6,0.61738]
[1737653014955,0.00462942,3239.1,3238.6,3.2078]
[1737653015149,0.28936096,3239.0,3238.8,0.61734]
[1737653015661,0.00462942,3239.1,3238.9,0.61733]
[1737653015862,0.00462942,3239.1,3239.0,3.82512]
[1737653016360,0.00462942,3239.1,3239.0,3.2078]
[1737653016564,0.00462942,3239.1,3239.0,3.82512]
[1737653017053,0.00462942,3239.1,3239.0,0.61732]
[1737653017259,0.00462942,3239.1,3239.0,3.82512]
[1737653018264,0.28936096,3239.8,3239.6,0.61719]
[1737653018565,1.74036096,3240.2,3239.0,3.2078]
[1737653018763,1.74036096,3240.2,3239.1,1.54325]
[1737653018960,0.61714,3240.0,3239.6,0.61719]
[1737653019357,1.74036096,3240.2,3239.4,3.2078]
[1737653019562,0.61712,3240.0,3239.6,0.61719]
[1737653019759,0.00462942,3240.1,3239.7,0.61718]
[1737653019961,0.61716,3239.9,3239.6,0.61719]
[1737653020161,0.61716,3239.9,3239.5,1.4975]
[1737653020365,0.00462942,3240.1,3239.6,0.6172]
[1737653020564,0.00462942,3240.1,3239.7,0.61718]
[1737653020873,0.00462942,3240.1,3240.0,0.61712]
[1737653021165,0.00462942,3240.1,3240.0,3.53973187]